bitfinex/quotes_BTCUSD_20260117
["timestamp","ask_amount","ask_price","bid_price","bid_amount"]
[1768629805221,0.05253514,95175.0,95173.0,0.00024727]
[1768629805631,0.06304151,95176.0,95173.0,0.00024727]
[1768629805847,0.06304151,95176.0,95168.0,0.0002]
[1768629805848,0.01050696,95175.0,95168.0,0.0002]
[1768629806067,0.01050696,95175.0,95167.0,1e-08]
[1768629806068,0.05253866,95168.0,95167.0,1e-08]
[1768629806294,0.05253866,95168.0,95154.0,0.05866332]
[1768629806297,0.01050883,95158.0,95152.0,1e-08]
[1768629806508,0.01050883,95158.0,95107.0,0.01728]
[1768629806509,0.31768037,95177.0,95107.0,0.01728]
[1768629806510,0.31768037,95177.0,95146.0,0.01051016]
[1768629806511,0.01050961,95151.0,95146.0,0.01051016]
[1768629806718,0.31768037,95162.0,95141.0,0.11083541]
[1768629806719,0.01051027,95145.0,95142.0,0.04832055]
[1768629806950,0.01051016,95146.0,95142.0,0.0001665]
[1768629807138,0.06306102,95146.0,95142.0,0.04832055]
[1768629807349,0.01051027,95145.0,95142.0,0.04832055]
[1768629807557,0.01051027,95145.0,95142.0,0.04815405]
[1768629807975,0.00981696,95144.0,95142.0,0.04815405]
[1768629808212,0.05255247,95143.0,95141.0,0.05828227]
[1768629808432,0.01051005,95147.0,95137.0,0.000276]
[1768629808434,0.04763554,95160.0,95137.0,0.04843005]
[1768629808642,0.12728,95155.0,95142.0,0.0105106]
[1768629808848,0.01051005,95147.0,95142.0,0.0105106]
[1768629809047,0.01051005,95147.0,95142.0,0.05866465]
[1768629809254,0.01051027,95145.0,95142.0,0.04815405]
[1768629809462,0.01051005,95147.0,95142.0,0.04815405]
[1768629809665,0.01051005,95147.0,95143.0,0.01051049]
[1768629809879,0.01051005,95147.0,95142.0,0.04815405]
[1768629809880,0.01051016,95146.0,95142.0,0.05866465]
[1768629810301,0.01051027,95145.0,95142.0,0.04815405]
[1768629810504,0.01051005,95147.0,95143.0,0.01051049]
[1768629811465,0.01050994,95148.0,95143.0,0.01051049]
[1768629811882,0.01050983,95149.0,95145.0,0.01051027]
[1768629812090,0.01050983,95149.0,95144.0,0.01051038]
[1768629812301,0.01051005,95147.0,95143.0,0.01051049]
[1768629812509,0.01050994,95148.0,95143.0,0.05773853]
[1768629812719,0.01051005,95147.0,95143.0,0.05773853]
[1768629813141,0.01051016,95146.0,95143.0,0.04722804]
[1768629813564,0.01051005,95147.0,95143.0,0.05773853]
[1768629813780,0.05254142,95163.0,95145.0,0.01051027]
[1768629813984,0.01050961,95151.0,95147.0,0.04722804]
[1768629814191,0.0105095,95152.0,95147.0,0.04722804]
[1768629814405,0.01050961,95151.0,95147.0,0.04722804]
[1768629814799,0.06305714,95152.0,95147.0,0.04722804]
[1768629814800,0.0105095,95152.0,95147.0,0.05773809]
[1768629815464,0.0105095,95152.0,95148.0,0.05773798]
[1768629816082,0.0105095,95152.0,95148.0,0.04722804]
[1768629816525,0.01050961,95151.0,95148.0,0.04722804]
[1768629816735,0.01050961,95151.0,95147.0,0.01051005]
[1768629817974,0.01050961,95151.0,95146.0,0.01051016]
[1768629818189,0.01050961,95151.0,95147.0,0.01051005]
[1768629821509,0.01050972,95150.0,95146.0,0.01051016]
[1768629822131,0.0105095,95152.0,95146.0,0.01051016]
[1768629822337,0.06305706,95152.0,95146.0,0.01051016]
[1768629822559,0.06305719,95152.0,95146.0,0.01051016]
[1768629823169,0.01050961,95151.0,95147.0,0.01051005]
[1768629826562,0.0105095,95152.0,95148.0,0.01050994]
[1768629826755,0.01050961,95151.0,95147.0,0.01051005]
[1768629827501,0.0105095,95152.0,95148.0,0.01050994]
[1768629828296,0.0105095,95152.0,95144.0,0.12732]
[1768629828297,0.01050883,95158.0,95154.0,0.04722804]
[1768629828508,0.01050894,95157.0,95154.0,0.04481367]
[1768629828931,0.01050839,95162.0,95154.0,0.04481367]
[1768629828932,0.00046816,95164.0,95160.0,0.05254287]
[1768629829131,0.00046816,95164.0,95161.0,0.04722804]
[1768629829338,0.06351722,95164.0,95161.0,0.04722804]
[1768629829560,0.01050828,95163.0,95159.0,0.04722804]
[1768629829975,0.01050839,95162.0,95159.0,0.04722804]
[1768629830407,0.01050762,95169.0,95161.0,0.0105085]
[1768629830610,0.01050784,95167.0,95163.0,0.01050828]
[1768629830837,0.01050784,95167.0,95162.0,0.17454804]
[1768629830838,0.01050795,95166.0,95162.0,0.17454804]
[1768629831050,0.01050806,95165.0,95162.0,0.17454804]
[1768629831250,0.01050795,95166.0,95162.0,0.17454804]
[1768629831461,0.01050806,95165.0,95162.0,0.17454804]
[1768629831938,0.01050806,95165.0,95162.0,0.12732]
[1768629832192,0.05254142,95163.0,95162.0,0.12732]
[1768629832504,0.05253774,95170.0,95165.0,0.01050806]
[1768629832645,0.01050773,95168.0,95164.0,0.01050817]
[1768629833093,0.01050773,95168.0,95163.0,0.05596834]
[1768629833532,0.01050773,95168.0,95164.0,0.01050817]
[1768629833731,0.01050784,95167.0,95163.0,0.05596834]
[1768629834367,0.05253724,95171.0,95165.0,0.05596812]
[1768629834585,0.02258999,95179.0,95165.0,0.04546006]
[1768629834814,0.01050773,95168.0,95165.0,0.04546006]
[1768629835195,0.01050773,95168.0,95163.0,0.01050828]
[1768629835934,0.01050773,95168.0,95164.0,0.01050817]
[1768629836213,0.06304617,95169.0,95164.0,0.01050817]
[1768629836214,0.01050762,95169.0,95165.0,0.01050806]
[1768629836630,0.2432,95176.0,95172.0,0.01050729]
[1768629836843,0.2432,95176.0,95170.0,0.01050751]
[1768629836844,0.01050707,95174.0,95170.0,0.01050751]
[1768629837506,0.01050707,95174.0,95170.0,0.13782751]
[1768629837710,0.01059151,95174.0,95170.0,0.13782751]
[1768629837919,0.01059151,95174.0,95171.0,0.04546006]
[1768629838323,8.444e-05,95174.0,95171.0,0.0105074]
[1768629838532,8.444e-05,95174.0,95170.0,0.13782751]
[1768629838533,0.01059151,95174.0,95170.0,0.13782751]
[1768629838739,0.01059151,95174.0,95170.0,0.12732]
[1768629838961,0.01050718,95173.0,95170.0,0.12732]
[1768629842195,0.01059151,95174.0,95170.0,0.13782751]
[1768629843444,0.01059151,95174.0,95170.0,0.12732]
[1768629844617,0.01050685,95176.0,95171.0,0.0105074]
[1768629844821,0.01050696,95175.0,95171.0,0.04546006]
[1768629845241,0.01050696,95175.0,95170.0,0.13782751]
[1768629845626,0.01050674,95177.0,95172.0,0.01050729]
[1768629846416,0.06304068,95177.0,95172.0,0.01050729]
[1768629846824,0.01050629,95181.0,95177.0,0.01050674]
[1768629847023,0.01050629,95181.0,95176.0,0.01050685]
[1768629847432,0.0105064,95180.0,95176.0,0.01050685]
[1768629847852,0.01050651,95179.0,95175.0,0.01050696]
[1768629848066,0.0105064,95180.0,95176.0,0.01050685]
[1768629848828,0.01050618,95182.0,95177.0,0.01050674]
[1768629849041,0.01050607,95183.0,95178.0,0.12732]
[1768629849244,0.01050607,95183.0,95178.0,0.01050662]
[1768629849445,0.01050618,95182.0,95179.0,0.12732]
[1768629850224,0.01050574,95186.0,95181.0,0.01050629]
[1768629850400,0.01050607,95183.0,95179.0,0.12732]
[1768629850601,0.01050607,95183.0,95179.0,0.13782651]
[1768629850807,0.01050596,95184.0,95180.0,0.0105064]
[1768629852787,0.01050585,95185.0,95181.0,0.01050629]
[1768629854101,0.01050596,95184.0,95180.0,0.0105064]
[1768629855151,0.01050574,95186.0,95181.0,0.01050629]
[1768629855397,0.01050574,95186.0,95180.0,0.0105064]
[1768629855398,0.06303518,95185.0,95180.0,0.0105064]
[1768629855617,0.01050585,95185.0,95180.0,0.0105064]
[1768629856008,0.01050596,95184.0,95179.0,0.13782651]
[1768629856162,0.01050596,95184.0,95180.0,0.0105064]
[1768629858378,0.01050607,95183.0,95179.0,0.13782651]
[1768629859413,0.01050596,95184.0,95180.0,0.0105064]
[1768629860847,0.01050596,95184.0,95179.0,0.13782651]
[1768629861049,0.01050607,95183.0,95179.0,0.13782651]
[1768629861252,0.01050618,95182.0,95179.0,0.12732]
[1768629861411,0.01050618,95182.0,95179.0,0.12036881]
[1768629866502,0.06303765,95182.0,95179.0,0.12036881]
[1768629867137,0.01050618,95182.0,95179.0,0.11796209]
[1768629869395,9.3e-05,95182.0,95179.0,0.1284686]
[1768629870665,9.3e-05,95182.0,95179.0,0.18100109]
[1768629870872,0.01050596,95184.0,95179.0,0.12732]
[1768629870873,0.06272993,95183.0,95179.0,0.12732]
[1768629871081,0.01050618,95182.0,95179.0,0.12732]
[1768629872558,0.06303765,95182.0,95179.0,0.12732]
[1768629873034,0.01050618,95182.0,95179.0,0.12732]
[1768629873186,0.0630373,95182.0,95179.0,0.12732]
[1768629874200,0.01050618,95182.0,95179.0,0.12732]
[1768629880509,0.05253154,95181.0,95179.0,0.12732]
[1768629881762,0.06303713,95182.0,95179.0,0.12732]
[1768629882168,0.05253153,95181.0,95179.0,0.12732]
[1768629883469,0.01050618,95182.0,95179.0,0.12732]
[1768629885591,0.01050618,95182.0,95178.0,0.01050662]
[1768629885794,0.01050618,95182.0,95178.0,0.13782662]
[1768629886002,0.01050618,95182.0,95178.0,0.12732]
[1768629886203,0.01050618,95182.0,95178.0,0.13782662]
[1768629888427,0.01050596,95184.0,95179.0,0.01050651]
[1768629889356,0.01050607,95183.0,95179.0,0.01050651]
[1768629889553,0.01050607,95183.0,95178.0,0.13782662]
[1768629889896,0.01050618,95182.0,95178.0,0.13782662]
[1768629891235,0.01050585,95185.0,95179.0,0.01050651]
[1768629891443,0.06303541,95185.0,95179.0,0.01050651]
[1768629892218,0.01050596,95184.0,95180.0,0.0105064]
[1768629893641,0.01050618,95182.0,95178.0,0.13782662]
[1768629894481,0.01050607,95183.0,95179.0,0.01050651]
[1768629895011,0.01050607,95183.0,95178.0,0.13782662]
[1768629895218,0.01050563,95187.0,95178.0,0.13782662]
[1768629895219,0.01050574,95186.0,95178.0,0.13782662]
[1768629895427,0.01050585,95185.0,95181.0,0.01050629]
[1768629896651,0.01050574,95186.0,95181.0,0.01050629]
[1768629896857,0.01050574,95186.0,95181.0,0.06303765]
[1768629897276,0.01050574,95186.0,95181.0,0.05180623]
[1768629897660,0.0106705,95190.0,95181.0,0.05253149]
[1768629897881,0.0106705,95190.0,95180.0,0.0105064]
[1768629897882,0.0001652,95190.0,95186.0,0.01050574]
[1768629898067,0.0106705,95190.0,95186.0,0.13782574]
[1768629898269,0.0106705,95190.0,95186.0,0.12732]
[1768629898478,0.01050541,95189.0,95186.0,0.12732]
[1768629902103,0.06303159,95191.0,95187.0,0.01050563]
[1768629902104,0.01050519,95191.0,95187.0,0.01050563]
[1768629902309,0.01050475,95195.0,95187.0,0.05935667]
[1768629902512,0.01050475,95195.0,95188.0,0.01050552]
[1768629902845,0.01050497,95193.0,95189.0,0.01050541]
[1768629903014,0.01050497,95193.0,95188.0,0.01050552]
[1768629903015,0.01050508,95192.0,95188.0,0.01050552]
[1768629903217,0.01050508,95192.0,95187.0,0.01050563]
[1768629903638,0.0105053,95190.0,95186.0,0.13782574]
[1768629904209,0.01050519,95191.0,95187.0,0.01050563]
[1768629908608,0.01050497,95193.0,95188.0,0.01050552]
[1768629908813,0.01059953,95193.0,95188.0,0.01050552]
[1768629909201,0.01050519,95191.0,95187.0,0.01050563]
[1768629909409,0.01059953,95193.0,95188.0,0.01050552]
[1768629909856,0.01059953,95193.0,95188.0,0.01042704]
[1768629910874,0.01059953,95193.0,95189.0,0.01050541]
[1768629911285,0.01059953,95193.0,95189.0,0.01042693]
[1768629912060,0.01059953,95193.0,95190.0,0.0105053]
[1768629912061,9.456e-05,95193.0,95190.0,0.0105053]
[1768629919098,0.01059953,95193.0,95189.0,0.01042693]
[1768629920515,9.456e-05,95193.0,95192.0,0.05252542]
[1768629920724,9.456e-05,95193.0,95192.0,0.0510753]
[1768629921329,0.01050442,95198.0,95192.0,0.0510753]
[1768629921330,0.04552599,95200.0,95192.0,0.01050508]
[1768629921530,0.01050431,95199.0,95193.0,0.06302984]
[1768629921733,0.01050442,95198.0,95194.0,0.01050486]
[1768629921933,0.01050431,95199.0,95195.0,0.01050475]
[1768629922549,0.01050442,95198.0,95194.0,0.01050486]
[1768629925329,0.01050442,95198.0,95194.0,0.13778486]
[1768629929831,0.01079722,95198.0,95194.0,0.13778486]
[1768629935210,0.01079722,95198.0,95194.0,0.13770635]
[1768629939006,0.01050453,95197.0,95194.0,0.12728]
[1768629939860,0.01079733,95197.0,95194.0,0.12728]
[1768629942322,0.01079733,95197.0,95194.0,0.12712296]
[1768629949467,0.01079733,95197.0,95194.0,0.1269659]
[1768629950014,0.06332005,95197.0,95194.0,0.1269659]
[1768629950229,0.01079733,95197.0,95194.0,0.1269659]
[1768629950627,0.01050464,95196.0,95192.0,0.01050508]
[1768629953265,0.01079733,95197.0,95193.0,0.01050497]
[1768629953466,0.01079733,95197.0,95193.0,0.00723984]
[1768629954546,0.0002928,95197.0,95194.0,0.01042633]
[1768629954749,0.0002928,95197.0,95193.0,0.05973133]
[1768629956226,0.0002928,95197.0,95194.0,0.01050486]
[1768629956630,0.0002928,95197.0,95193.0,0.05973118]
[1768629957202,0.0002928,95197.0,95194.0,0.01050486]
[1768629959863,0.1378232,95209.0,95203.0,0.01050387]
[1768629959864,0.01050331,95208.0,95203.0,0.01050387]
[1768629960082,0.00020586,95207.0,95204.0,0.01050376]
[1768629960512,0.00020586,95207.0,95205.0,0.05251812]
[1768629960948,0.00020586,95207.0,95205.0,0.05251825]
[1768629961161,0.00020586,95207.0,95204.0,0.01050376]
[1768629961590,0.00020586,95207.0,95204.0,0.0630225]
[1768629961812,0.00020586,95207.0,95205.0,0.05251821]
[1768629962027,0.00020586,95207.0,95205.0,0.05251825]
[1768629962237,0.00020586,95207.0,95204.0,0.06302243]
[1768629962468,0.00020586,95207.0,95204.0,0.01050376]
[1768629962912,0.00020586,95207.0,95205.0,0.05251817]
[1768629964867,0.00020586,95207.0,95204.0,0.06302151]
[1768629965062,0.00020586,95207.0,95206.0,0.05251769]
[1768629965208,0.00020586,95207.0,95206.0,0.05247233]
[1768629965653,0.00020586,95207.0,95206.0,0.05251769]
[1768629966446,0.00020586,95207.0,95204.0,0.06302151]
[1768629966665,0.00020586,95207.0,95206.0,0.05251769]
[1768629967291,1e-08,95207.0,95205.0,0.0495387]
[1768629967501,1e-08,95207.0,95205.0,0.10205654]
[1768629967709,1e-08,95207.0,95205.0,0.05251784]
[1768629968808,1e-08,95207.0,95204.0,0.06302151]
[1768629970106,1e-08,95207.0,95206.0,0.05251769]
[1768629970317,1e-08,95207.0,95205.0,0.05251825]
[1768629970733,1e-08,95207.0,95206.0,0.05251769]
[1768629975335,0.05783691,95242.0,95206.0,0.05251769]
[1768629975337,0.010501,95229.0,95223.0,0.01050166]
[1768629975536,0.00047368,95229.0,95223.0,0.01050166]
[1768629975830,0.01097468,95229.0,95223.0,0.01050166]
[1768629975985,0.00047368,95229.0,95225.0,0.01050144]
[1768629976186,0.00047368,95229.0,95226.0,0.01050133]
[1768629976600,0.04656307,95235.0,95232.0,0.01050067]
[1768629976773,0.05706341,95235.0,95227.0,0.01050122]
[1768629976976,0.04656307,95235.0,95231.0,0.01050078]
[1768629977342,0.05706341,95235.0,95231.0,0.0103769]
[1768629977486,0.05706341,95235.0,95231.0,0.01029837]
[1768629977687,0.01050045,95234.0,95230.0,0.01050089]
[1768629978225,0.01050045,95234.0,95229.0,0.06300598]
[1768629978226,0.01050045,95234.0,95229.0,0.010501]
[1768629978985,0.01050056,95233.0,95228.0,0.01050111]
[1768629980792,0.01050056,95233.0,95229.0,0.010501]
[1768629980935,0.01050078,95231.0,95226.0,0.01050133]
[1768629981161,0.01050078,95231.0,95227.0,0.01050122]
[1768629981583,0.01050078,95231.0,95225.0,0.01050144]
[1768629981584,0.010501,95229.0,95225.0,0.01050144]
[1768629982187,0.06300602,95229.0,95224.0,0.01050155]
[1768629982628,0.010501,95229.0,95224.0,0.01050155]
[1768629982964,0.06300611,95229.0,95224.0,0.01050155]
[1768629983292,0.01050111,95228.0,95224.0,0.01050155]
[1768629983533,0.01050155,95224.0,95220.0,0.01050199]
[1768629984295,0.01050177,95222.0,95216.0,0.06004113]
[1768629984612,0.06301064,95222.0,95216.0,0.0495387]
[1768629984856,0.01050177,95222.0,95216.0,0.10205082]
[1768629985019,0.01050177,95222.0,95218.0,0.01050221]
[1768629986356,0.01050155,95224.0,95219.0,0.0105021]
[1768629987037,0.0630085,95226.0,95221.0,0.01050188]
[1768629987864,0.01050144,95225.0,95221.0,0.01050188]
[1768629988365,0.01050155,95224.0,95221.0,0.01050188]
[1768629988522,0.0630085,95226.0,95220.0,0.01050199]
[1768629988523,0.05944017,95228.0,95224.0,0.01050155]
[1768629988724,0.04893906,95228.0,95222.0,0.06301026]
[1768629989532,0.01050133,95226.0,95222.0,0.01050177]
[1768629989757,0.01050144,95225.0,95221.0,0.01050188]
[1768629989950,0.05250721,95225.0,95219.0,0.0105021]
[1768629990316,0.01050155,95224.0,95220.0,0.01050199]
[1768629993944,0.01050166,95223.0,95218.0,0.01050221]
[1768629994176,0.01050155,95224.0,95219.0,0.0105021]
[1768629995336,0.01050166,95223.0,95218.0,0.01050221]
[1768629995540,0.01050155,95224.0,95219.0,0.0105021]
[1768629995910,0.00889731,95224.0,95220.0,0.01050199]
[1768629998275,0.00896194,95224.0,95220.0,0.01050199]
[1768629999265,0.00896194,95224.0,95219.0,0.0105021]
[1768629999266,0.01050265,95214.0,95202.0,0.04820265]
[1768629999376,0.01050287,95212.0,95203.0,0.0631616]
[1768629999576,0.06301739,95212.0,95204.0,0.05251825]
[1768629999785,0.06301739,95212.0,95205.0,0.01050365]
[1768629999786,0.01050298,95211.0,95205.0,0.01050365]
[1768630000218,0.01050298,95211.0,95205.0,0.06302173]
[1768630001048,0.06301792,95211.0,95205.0,0.01050365]
[1768630001248,0.01050309,95210.0,95206.0,0.01050353]
[1768630002973,0.0105032,95209.0,95205.0,0.01050365]
[1768630003329,0.01050309,95210.0,95205.0,0.06302164]
[1768630003493,0.01050309,95210.0,95205.0,0.01050365]
[1768630003701,0.0105032,95209.0,95205.0,0.01050365]
[1768630005327,0.01050309,95210.0,95206.0,0.01050353]
[1768630005532,0.01050298,95211.0,95206.0,0.01050353]
[1768630006272,0.01050298,95211.0,95207.0,0.01050342]
[1768630007046,0.01050287,95212.0,95207.0,0.01050342]
[1768630009504,0.01050298,95211.0,95207.0,0.01050342]
[1768630009887,0.01050287,95212.0,95208.0,0.01050331]
[1768630011067,0.01050298,95211.0,95207.0,0.01050342]
[1768630011351,0.01050298,95211.0,95207.0,0.01045807]
[1768630011521,0.01050276,95213.0,95208.0,0.01050331]
[1768630011706,0.01050276,95213.0,95208.0,0.06301986]
[1768630012330,0.01050276,95213.0,95209.0,0.0105032]
[1768630012695,0.12724,95214.0,95210.0,0.01050309]
[1768630012909,0.13774265,95214.0,95210.0,0.01050309]
[1768630013315,0.13774265,95214.0,95210.0,0.01045774]
[1768630013541,0.12724,95214.0,95211.0,0.01050298]
[1768630014739,0.12724,95214.0,95211.0,0.06301782]
[1768630014966,0.12724,95214.0,95211.0,0.01050298]
[1768630016113,0.12724,95214.0,95211.0,0.06301749]
[1768630016840,0.12724,95214.0,95211.0,0.01050298]
[1768630019036,0.12724,95214.0,95211.0,0.01045763]
[1768630019589,0.13774265,95214.0,95210.0,0.01041239]
[1768630021344,0.01050287,95212.0,95208.0,0.01050331]
[1768630021549,0.01050276,95213.0,95209.0,0.0105032]
[1768630021968,0.01050287,95212.0,95208.0,0.01050331]
[1768630024568,0.01050287,95212.0,95207.0,0.01045807]
[1768630024780,0.01050298,95211.0,95207.0,0.01045807]
[1768630025512,0.01050298,95211.0,95205.0,0.01050365]
[1768630025728,0.01050309,95210.0,95206.0,0.01050353]
[1768630026156,0.01050298,95211.0,95206.0,0.01050353]
[1768630026157,0.01050298,95211.0,95207.0,0.01050342]
[1768630027624,0.01050298,95211.0,95207.0,0.01045808]
[1768630027771,0.01050276,95213.0,95208.0,0.01050331]
[1768630027958,0.01050287,95212.0,95208.0,0.01050331]
[1768630029285,0.01050287,95212.0,95207.0,0.01045808]
[1768630029484,0.01050298,95211.0,95207.0,0.01045808]
[1768630029723,0.01050298,95211.0,95206.0,0.01045818]
[1768630029943,0.01050298,95211.0,95207.0,0.01050342]
[1768630030085,0.01050298,95211.0,95206.0,0.01045818]
[1768630030303,0.01050298,95211.0,95207.0,0.01050342]
[1768630030933,0.01050287,95212.0,95208.0,0.01050331]
[1768630031284,0.01050298,95211.0,95207.0,0.01050342]
[1768630031480,0.01050309,95210.0,95205.0,0.01050365]
[1768630031948,0.0105032,95209.0,95205.0,0.01050365]
[1768630032151,0.01050309,95210.0,95205.0,0.01050365]
[1768630032317,0.01050309,95210.0,95206.0,0.01050353]
[1768630032518,0.01050309,95210.0,95205.0,0.01050365]
[1768630032743,0.01050298,95211.0,95206.0,0.01050353]
[1768630032949,0.01050298,95211.0,95207.0,0.01050342]
[1768630033523,0.01050287,95212.0,95208.0,0.01045797]
[1768630035427,0.01050298,95211.0,95207.0,0.01050342]
[1768630036230,0.01050309,95210.0,95206.0,0.01050353]
[1768630036835,0.01050298,95211.0,95207.0,0.01050342]
[1768630037039,0.01050287,95212.0,95208.0,0.01050331]
[1768630037487,0.01050287,95212.0,95207.0,0.01050342]
[1768630037690,0.01050287,95212.0,95206.0,0.01050353]
[1768630037691,0.01050298,95211.0,95206.0,0.01050353]
[1768630037922,0.06301728,95212.0,95206.0,0.01050353]
[1768630037923,0.01050287,95212.0,95208.0,0.01050331]
[1768630038323,0.01050276,95213.0,95208.0,0.01050331]
[1768630038519,0.01050276,95213.0,95209.0,0.0105032]
[1768630039843,0.01050276,95213.0,95209.0,0.01033]
[1768630040243,0.01050287,95212.0,95208.0,0.01050331]
[1768630042187,0.01050276,95213.0,95208.0,0.06301976]
[1768630042387,0.01050276,95213.0,95209.0,0.0105032]
[1768630043403,0.12724,95214.0,95210.0,0.01050309]
[1768630043606,0.12724,95214.0,95211.0,0.01050298]
[1768630044012,0.12724,95214.0,95211.0,0.06301783]
[1768630045118,0.12724,95214.0,95211.0,0.01050298]
[1768630045260,0.13774265,95214.0,95210.0,0.01050309]
[1768630045474,0.06991666,95214.0,95212.0,0.05251437]
[1768630045696,0.06991666,95214.0,95211.0,0.06301789]
[1768630046126,0.08041931,95214.0,95209.0,0.0105032]
[1768630046336,0.08041931,95214.0,95210.0,0.01050309]
[1768630047425,0.13293262,95214.0,95209.0,0.0105032]
[1768630047648,0.01050276,95213.0,95209.0,0.0105032]
[1768630047855,0.01050276,95213.0,95208.0,0.01050331]
[1768630047856,0.0630169,95213.0,95208.0,0.01050331]
[1768630048074,0.01050276,95213.0,95209.0,0.0105032]
[1768630050431,0.08041931,95214.0,95210.0,0.01050309]
[1768630050642,0.01050287,95212.0,95207.0,0.01050342]
[1768630051017,0.01050276,95213.0,95209.0,0.0105032]
[1768630051823,0.01050298,95211.0,95206.0,0.06302118]
[1768630052017,0.01050287,95212.0,95208.0,0.01050331]
[1768630053678,0.01050298,95211.0,95207.0,0.01050342]
[1768630058746,0.01050287,95212.0,95208.0,0.01050331]
[1768630059538,0.06301738,95212.0,95207.0,0.01050342]
[1768630059708,0.01050287,95212.0,95208.0,0.01050331]
[1768630060498,0.01050276,95213.0,95209.0,0.0105032]
[1768630060903,0.08041931,95214.0,95208.0,0.01050331]
[1768630061105,0.01050276,95213.0,95209.0,0.0105032]
[1768630062076,0.01050287,95212.0,95208.0,0.01050331]
[1768630067129,0.01050298,95211.0,95207.0,0.01050342]
[1768630067315,0.01050309,95210.0,95206.0,0.01050353]
[1768630069776,0.0105032,95209.0,95205.0,0.01050365]
[1768630072287,0.0105032,95209.0,95205.0,0.01045831]
[1768630073056,0.01050309,95210.0,95206.0,0.01050353]
[1768630073465,0.01050309,95210.0,95206.0,0.01030342]
[1768630073855,0.01050276,95213.0,95208.0,0.01050331]
[1768630074670,0.01050287,95212.0,95208.0,0.01050331]
[1768630074814,0.01050287,95212.0,95206.0,0.06282073]
[1768630074815,0.01050298,95211.0,95206.0,0.06282073]
[1768630075218,0.01050309,95210.0,95206.0,0.01030342]
[1768630075808,0.01050287,95212.0,95208.0,0.01050331]
[1768630079332,0.01050298,95211.0,95207.0,0.01050342]
[1768630079479,0.01050287,95212.0,95208.0,0.01050331]
[1768630080248,0.08041931,95214.0,95209.0,0.0105032]
[1768630080694,0.06991666,95214.0,95210.0,0.01050309]
[1768630080892,0.08041931,95214.0,95210.0,0.01050309]
[1768630081130,0.08041931,95214.0,95211.0,0.01050298]
[1768630081131,0.06991666,95214.0,95211.0,0.01050298]
[1768630082049,0.06991666,95214.0,95211.0,0.0103029]
[1768630082909,0.08041931,95214.0,95210.0,0.01050309]
[1768630083407,0.06991666,95214.0,95211.0,0.06301753]
[1768630083560,0.06991666,95214.0,95212.0,0.05251436]
[1768630083745,0.06991666,95214.0,95211.0,0.06301787]
[1768630084128,0.08041931,95214.0,95210.0,0.01050309]
[1768630085196,0.06991666,95214.0,95210.0,0.01050309]
[1768630086205,0.08041931,95214.0,95210.0,0.01050309]
[1768630088994,0.01050232,95217.0,95212.0,0.01050287]
[1768630090067,0.01050232,95217.0,95212.0,0.06301716]
[1768630090406,0.01050232,95217.0,95212.0,0.01050287]
[1768630090649,0.01050232,95217.0,95213.0,0.01050276]
[1768630090886,0.00154724,95213.0,95212.0,0.01050287]
[1768630091093,0.00154724,95213.0,95212.0,0.06301725]
[1768630092808,0.00154724,95213.0,95212.0,0.01050287]
[1768630093683,0.00154724,95213.0,95212.0,0.01042439]
[1768630093884,0.00154724,95213.0,95212.0,0.06293877]
[1768630094131,0.00154724,95213.0,95212.0,0.01034592]
[1768630094492,0.00154724,95213.0,95212.0,0.0628603]
[1768630097723,0.00154724,95213.0,95212.0,0.01034592]
[1768630098542,0.00154724,95213.0,95212.0,0.06266025]
[1768630098693,0.00154724,95213.0,95212.0,0.06246021]
[1768630099376,0.00154724,95213.0,95212.0,0.06238173]
[1768630101470,0.12724,95221.0,95214.0,0.01050265]
[1768630101672,0.12724,95221.0,95218.0,0.01050221]
[1768630101872,0.12724,95221.0,95219.0,0.05251051]
[1768630102782,0.12724,95221.0,95218.0,0.06301219]
[1768630103279,0.12724,95221.0,95219.0,0.05251052]
[1768630104045,0.12724,95221.0,95218.0,0.01050221]
[1768630104484,0.13774188,95221.0,95217.0,0.01050232]
[1768630104723,0.12724,95221.0,95218.0,0.01050221]
[1768630105413,0.12724,95221.0,95218.0,0.06301323]
[1768630105692,0.12724,95221.0,95218.0,0.01030225]
[1768630106271,0.12724,95221.0,95218.0,0.0101023]
[1768630106623,0.12724,95221.0,95219.0,0.05251034]
[1768630106947,0.12724,95221.0,95219.0,0.05208941]
[1768630107228,0.12724,95221.0,95218.0,0.06261335]
[1768630107365,0.12724,95221.0,95218.0,0.0101023]
[1768630109335,0.12724,95221.0,95218.0,0.06261336]
[1768630111427,0.12724,95221.0,95218.0,0.0101023]
[1768630111627,0.12724,95221.0,95218.0,0.01005696]
[1768630115731,0.12724,95221.0,95218.0,0.01001162]
[1768630115934,0.12724,95221.0,95218.0,0.0625226]
[1768630121882,0.12724,95221.0,95218.0,0.01001162]
[1768630124027,0.12724,95221.0,95217.0,0.01050232]
[1768630124607,0.12724,95221.0,95218.0,0.01050221]
[1768630124822,0.13774188,95221.0,95216.0,0.01050243]
[1768630125385,0.12724,95221.0,95218.0,0.01050221]
[1768630126161,0.13774188,95221.0,95217.0,0.01050232]
[1768630129619,0.12724,95221.0,95218.0,0.01050221]
[1768630129956,0.13774188,95221.0,95217.0,0.01050232]
[1768630130921,0.12724,95221.0,95218.0,0.01050221]
[1768630134070,0.01050199,95220.0,95216.0,0.01050243]
[1768630134245,0.0105021,95219.0,95215.0,0.01050254]
[1768630137586,0.0105021,95219.0,95215.0,0.0104572]
[1768630139373,0.01050199,95220.0,95216.0,0.01050243]
[1768630141215,0.13774188,95221.0,95217.0,0.01050232]
[1768630141624,0.19025168,95221.0,95215.0,0.01050254]
[1768630141827,0.01050199,95220.0,95216.0,0.01050243]
[1768630142510,0.04701888,95217.0,95193.0,0.04775775]
[1768630142716,0.12724,95221.0,95203.0,0.01050387]
[1768630142717,0.01050342,95207.0,95203.0,0.01050387]
[1768630142946,0.01050342,95207.0,95202.0,0.01050398]
[1768630143149,0.01050342,95207.0,95198.0,0.06302544]
[1768630143150,0.01050365,95205.0,95200.0,0.0105042]
[1768630143331,0.01050365,95205.0,95201.0,0.01050409]
[1768630143534,0.01050398,95202.0,95196.0,0.12724]
[1768630143739,0.01050376,95204.0,95198.0,0.01050442]
[1768630144086,0.01050376,95204.0,95198.0,0.06302642]
[1768630144321,0.01050376,95204.0,95200.0,0.0105042]
[1768630144773,0.01050387,95203.0,95199.0,0.01100835]
[1768630145763,0.01050376,95204.0,95199.0,0.01100835]
[1768630145975,0.01050387,95203.0,95199.0,0.01100835]
[1768630146188,0.01050376,95204.0,95199.0,0.01100835]
[1768630146591,0.01050376,95204.0,95200.0,0.0105042]
[1768630146825,0.01050387,95203.0,95199.0,0.01100835]
[1768630148100,0.01050398,95202.0,95199.0,0.00050404]
[1768630148314,0.01050398,95202.0,95197.0,0.0002224]
[1768630148315,0.0105042,95200.0,95197.0,0.0002224]
[1768630150885,0.01050398,95202.0,95197.0,0.01072693]
[1768630151100,0.01050409,95201.0,95197.0,0.0002224]
[1768630151520,0.0105042,95200.0,95197.0,0.0002224]
[1768630152382,0.01050398,95202.0,95198.0,0.01050442]
[1768630152585,0.01050409,95201.0,95197.0,0.0002224]
[1768630152805,0.0105042,95200.0,95197.0,0.0002224]